[Event "January 9 Early 2024"]
[Site "https://www.chess.com"]
[Date "2024.01.11"]
[Round "10"]
[White "Mammadov, Ziya"]
[Black "Yushko, Olga"]
[Result "0-1"]
[Board "170"]
[TimeControl "180+1"]
[WhiteFideId "13418890"]
[BlackFideId "14114500"]
[WhiteElo "1956"]
[BlackElo "2099"]
[WhiteTeam "AZE"]
[BlackTeam "UKR"]
[WhiteClock "0:00:15"]
[BlackClock "0:00:21"]

1. e4 {[%clk 0:02:54]}  e6 {[%clk 0:02:12]} 2. d4 {[%clk 0:02:45]}  d5 {[%clk 0:02:13]} 3. exd5 {[%clk 0:02:45]}  exd5 {[%clk 0:02:11]} 4. c4 {[%clk 0:02:46]}  Nf6 {[%clk 0:02:11]} 5. Nc3 {[%clk 0:02:47]}  Be7 {[%clk 0:02:12]} 6. Nf3 {[%clk 0:02:47]}  O-O {[%clk 0:02:12]} 7. Be2 {[%clk 0:02:48]}  Bg4 {[%clk 0:02:10]} 8. O-O {[%clk 0:02:47]}  Nc6 {[%clk 0:02:05]} 9. h3 {[%clk 0:02:46]}  Bh5 {[%clk 0:02:02]} 10. Be3 {[%clk 0:02:40]}  dxc4 {[%clk 0:01:57]} 11. Bxc4 {[%clk 0:02:39]}  Bxf3 {[%clk 0:01:57]} 12. Qxf3 {[%clk 0:02:36]}  Nxd4 {[%clk 0:01:57]} 13. Qxb7 {[%clk 0:02:24]}  Nc2 {[%clk 0:01:56]} 14. Rfd1 {[%clk 0:02:18]}  Qb8 {[%clk 0:01:53]} 15. Qxb8 {[%clk 0:02:16]}  Raxb8 {[%clk 0:01:54]} 16. Bxa7 {[%clk 0:02:15]}  Rxb2 {[%clk 0:01:53]} 17. Rac1 {[%clk 0:02:13]}  Ra8 {[%clk 0:01:41]} 18. Be3 {[%clk 0:01:58]}  Nxe3 {[%clk 0:01:34]} 19. fxe3 {[%clk 0:01:59]}  Bc5 {[%clk 0:01:32]} 20. Rd3 {[%clk 0:01:51]}  Re8 {[%clk 0:01:22]} 21. Re1 {[%clk 0:01:45]}  Bb4 {[%clk 0:01:21]} 22. Kh1 {[%clk 0:01:30]}  Rc2 {[%clk 0:01:16]} 23. Rb1 {[%clk 0:01:14]}  Bxc3 {[%clk 0:01:07]} 24. Bb3 {[%clk 0:01:14]}  Rb2 {[%clk 0:01:05]} 25. Rf1 {[%clk 0:00:55]}  Be5 {[%clk 0:01:00]} 26. g4 {[%clk 0:00:52]}  h6 {[%clk 0:00:53]} 27. Kg1 {[%clk 0:00:49]}  Re7 {[%clk 0:00:48]} 28. h4 {[%clk 0:00:42]}  Nxg4 {[%clk 0:00:45]} 29. Rxf7 {[%clk 0:00:30]}  Rxf7 {[%clk 0:00:39]} 30. Rd8+ {[%clk 0:00:30]}  Kh7 {[%clk 0:00:39]} 31. Bxf7 {[%clk 0:00:31]}  Bf6 {[%clk 0:00:24]} 32. Be6 {[%clk 0:00:28]}  Bxd8 {[%clk 0:00:22]} 33. Bxg4 {[%clk 0:00:27]}  Bxh4 {[%clk 0:00:21]} 34. Bf5+ {[%clk 0:00:26]}  g6 {[%clk 0:00:22]} 35. Be6 {[%clk 0:00:26]}  Bf2+ {[%clk 0:00:22]} 36. Kg2 {[%clk 0:00:26]}  Bxe3+ {[%clk 0:00:23]} 37. Kf3 {[%clk 0:00:27]}  Bg5 {[%clk 0:00:22]} 38. Bb3 {[%clk 0:00:27]}  Rd2 {[%clk 0:00:22]} 39. Bc4 {[%clk 0:00:25]}  c5 {[%clk 0:00:22]} 40. a4 {[%clk 0:00:24]}  Rd4 {[%clk 0:00:22]} 41. Bb5 {[%clk 0:00:23]}  c4 {[%clk 0:00:22]} 42. a5 {[%clk 0:00:23]}  c3 {[%clk 0:00:22]} 43. a6 {[%clk 0:00:14]}  Rd8 {[%clk 0:00:21]} 44. a7 {[%clk 0:00:14]}  c2 {[%clk 0:00:21]} 45. Bc6 {[%clk 0:00:11]}  c1=Q {[%clk 0:00:20]} 46. a8=Q {[%clk 0:00:11]}  Qf4+ {[%clk 0:00:19]} 47. Kg2 {[%clk 0:00:10]}  Rxa8 {[%clk 0:00:18]} 48. Bxa8 {[%clk 0:00:09]}  Qd2+ {[%clk 0:00:18]} 49. Kf3 {[%clk 0:00:08]}  Qc3+ {[%clk 0:00:18]} 50. Ke4 {[%clk 0:00:08]}  Qb4+ {[%clk 0:00:18]} 51. Kf3 {[%clk 0:00:08]}  Qa3+ {[%clk 0:00:18]} 52. Ke4 {[%clk 0:00:08]}  Qxa8+ {[%clk 0:00:18]} 53. Kd4 {[%clk 0:00:09]}  Qd8+ {[%clk 0:00:17]} 54. Ke5 {[%clk 0:00:10]}  Qf6+ {[%clk 0:00:17]} 55. Ke4 {[%clk 0:00:11]}  Qf4+ {[%clk 0:00:17]} 56. Kd5 {[%clk 0:00:12]}  h5 {[%clk 0:00:18]} 57. Ke6 {[%clk 0:00:12]}  h4 {[%clk 0:00:19]} 58. Kd5 {[%clk 0:00:12]}  h3 {[%clk 0:00:20]} 59. Ke6 {[%clk 0:00:13]}  h2 {[%clk 0:00:20]} 60. Kd5 {[%clk 0:00:14]}  h1=Q+ {[%clk 0:00:21]} 61. Ke6 {[%clk 0:00:15]} 0-1

[Event "January 9 Early 2024"]
[Site "https://www.chess.com"]
[Date "2024.01.11"]
[Round "10"]
[White "De Winter, Arthur"]
[Black "Baules Rodriguez, Jorge Luis"]
[Result "1-0"]
[Board "171"]
[TimeControl "180+1"]
[WhiteFideId "1069020"]
[BlackFideId "6600247"]
[WhiteElo "2781"]
[BlackElo "2564"]
[WhiteTeam "NED"]
[BlackTeam "PAN"]
[WhiteClock "0:00:04"]
[BlackClock "0:00:02"]

1. e4 {[%clk 0:03:00]}  c5 {[%clk 0:02:59]} 2. Nf3 {[%clk 0:02:59]}  d6 {[%clk 0:02:59]} 3. d4 {[%clk 0:02:57]}  cxd4 {[%clk 0:03:00]} 4. Nxd4 {[%clk 0:02:58]}  Nf6 {[%clk 0:03:01]} 5. Nc3 {[%clk 0:02:58]}  g6 {[%clk 0:03:01]} 6. Be3 {[%clk 0:02:52]}  Bg7 {[%clk 0:03:01]} 7. f3 {[%clk 0:02:52]}  O-O {[%clk 0:03:02]} 8. Qd2 {[%clk 0:02:53]}  Nc6 {[%clk 0:03:03]} 9. Bc4 {[%clk 0:02:52]}  Bd7 {[%clk 0:03:02]} 10. Bb3 {[%clk 0:02:51]}  Rc8 {[%clk 0:03:02]} 11. O-O-O {[%clk 0:02:51]}  Nxd4 {[%clk 0:03:03]} 12. Bxd4 {[%clk 0:02:51]}  b5 {[%clk 0:03:04]} 13. Kb1 {[%clk 0:02:41]}  a5 {[%clk 0:03:03]} 14. a3 {[%clk 0:02:20]}  b4 {[%clk 0:03:03]} 15. axb4 {[%clk 0:02:21]}  axb4 {[%clk 0:03:03]} 16. Na2 {[%clk 0:02:21]}  Be6 {[%clk 0:02:53]} 17. Bxe6 {[%clk 0:02:18]}  fxe6 {[%clk 0:02:54]} 18. Qxb4 {[%clk 0:02:17]}  Qc7 {[%clk 0:02:48]} 19. Qb3 {[%clk 0:02:10]}  Qd7 {[%clk 0:02:39]} 20. e5 {[%clk 0:02:05]}  Rb8 {[%clk 0:02:35]} 21. exf6 {[%clk 0:02:03]}  Rxb3 {[%clk 0:02:31]} 22. fxg7 {[%clk 0:02:04]}  Ra8 {[%clk 0:02:21]} 23. cxb3 {[%clk 0:02:02]}  e5 {[%clk 0:02:18]} 24. Bc3 {[%clk 0:01:50]}  Qf5+ {[%clk 0:02:15]} 25. Ka1 {[%clk 0:01:50]}  Qc2 {[%clk 0:02:15]} 26. Rd5 {[%clk 0:01:48]}  Qxb3 {[%clk 0:02:12]} 27. Ra5 {[%clk 0:01:48]}  Rxa5 {[%clk 0:02:10]} 28. Bxa5 {[%clk 0:01:49]}  Qc2 {[%clk 0:02:06]} 29. Rc1 {[%clk 0:01:11]}  Qxg2 {[%clk 0:02:06]} 30. Rc7 {[%clk 0:01:12]}  Qxf3 {[%clk 0:01:52]} 31. Nc3 {[%clk 0:01:08]}  Kxg7 {[%clk 0:01:42]} 32. Rxe7+ {[%clk 0:01:08]}  Kf6 {[%clk 0:01:31]} 33. Rxh7 {[%clk 0:00:59]}  Qa8 {[%clk 0:01:21]} 34. b4 {[%clk 0:00:55]}  d5 {[%clk 0:01:21]} 35. Rd7 {[%clk 0:00:42]}  d4 {[%clk 0:01:17]} 36. Nd5+ {[%clk 0:00:42]}  Kg5 {[%clk 0:00:59]} 37. Kb2 {[%clk 0:00:39]}  Qc6 {[%clk 0:00:50]} 38. Bd8+ {[%clk 0:00:20]}  Kh6 {[%clk 0:00:43]} 39. Nf6 {[%clk 0:00:18]}  Qc3+ {[%clk 0:00:35]} 40. Kb1 {[%clk 0:00:18]}  Qxb4+ {[%clk 0:00:33]} 41. Kc1 {[%clk 0:00:19]}  Qc3+ {[%clk 0:00:31]} 42. Kd1 {[%clk 0:00:19]}  Qd3+ {[%clk 0:00:26]} 43. Ke1 {[%clk 0:00:19]}  Qe3+ {[%clk 0:00:25]} 44. Kd1 {[%clk 0:00:20]}  Qg1+ {[%clk 0:00:23]} 45. Kd2 {[%clk 0:00:20]}  Qxh2+ {[%clk 0:00:24]} 46. Kd3 {[%clk 0:00:21]}  Qh3+ {[%clk 0:00:22]} 47. Kc4 {[%clk 0:00:20]}  Qc3+ {[%clk 0:00:17]} 48. Kd5 {[%clk 0:00:20]}  Qb3+ {[%clk 0:00:15]} 49. Kxe5 {[%clk 0:00:20]}  Qb5+ {[%clk 0:00:14]} 50. Kxd4 {[%clk 0:00:20]}  Qa4+ {[%clk 0:00:12]} 51. Ke5 {[%clk 0:00:19]}  Qb5+ {[%clk 0:00:11]} 52. Ke6 {[%clk 0:00:20]}  Qc4+ {[%clk 0:00:11]} 53. Kd6 {[%clk 0:00:18]}  Qd4+ {[%clk 0:00:11]} 54. Ke7 {[%clk 0:00:18]}  Qe5+ {[%clk 0:00:10]} 55. Kf8 {[%clk 0:00:18]}  Qf5 {[%clk 0:00:08]} 56. Rd4 {[%clk 0:00:09]}  g5 {[%clk 0:00:05]} 57. Be7 {[%clk 0:00:05]}  Kg6 {[%clk 0:00:04]} 58. Rd6 {[%clk 0:00:04]}  g4 {[%clk 0:00:02]} 59. Ke8 {[%clk 0:00:04]} 1-0

[Event "January 9 Early 2024"]
[Site "https://www.chess.com"]
[Date "2024.01.11"]
[Round "10"]
[White "Hnatyshyn, Anastasiia"]
[Black "Huschenbeth, Niclas"]
[Result "1-0"]
[Board "172"]
[TimeControl "180+1"]
[WhiteFideId "14198339"]
[BlackFideId "24604747"]
[WhiteElo "2304"]
[BlackElo "2440"]
[WhiteTeam "UKR"]
[BlackTeam "GER"]
[WhiteClock "0:00:02"]
[BlackClock "0:00:01"]

1. Nc3 {[%clk 0:03:00]}  d5 {[%clk 0:02:58]} 2. e4 {[%clk 0:02:58]}  d4 {[%clk 0:02:48]} 3. Nce2 {[%clk 0:02:59]}  e5 {[%clk 0:02:45]} 4. Nf3 {[%clk 0:02:59]}  Bd6 {[%clk 0:02:44]} 5. Ng3 {[%clk 0:02:59]}  Ne7 {[%clk 0:02:44]} 6. c3 {[%clk 0:02:58]}  c5 {[%clk 0:02:42]} 7. Bb5+ {[%clk 0:02:56]}  Nbc6 {[%clk 0:02:41]} 8. O-O {[%clk 0:02:56]}  O-O {[%clk 0:02:40]} 9. d3 {[%clk 0:02:51]}  a6 {[%clk 0:02:39]} 10. Bxc6 {[%clk 0:02:51]}  Nxc6 {[%clk 0:02:39]} 11. h3 {[%clk 0:02:51]}  h6 {[%clk 0:02:29]} 12. Qe2 {[%clk 0:02:40]}  Be6 {[%clk 0:02:28]} 13. Bd2 {[%clk 0:02:39]}  Qd7 {[%clk 0:02:26]} 14. c4 {[%clk 0:02:38]}  b5 {[%clk 0:02:26]} 15. b3 {[%clk 0:02:38]}  Rab8 {[%clk 0:02:26]} 16. Rab1 {[%clk 0:02:37]}  Rb7 {[%clk 0:02:24]} 17. Ne1 {[%clk 0:02:34]}  bxc4 {[%clk 0:02:20]} 18. dxc4 {[%clk 0:02:33]}  Nb4 {[%clk 0:02:11]} 19. Bxb4 {[%clk 0:02:31]}  Rxb4 {[%clk 0:02:12]} 20. Nd3 {[%clk 0:02:31]}  Rbb8 {[%clk 0:02:12]} 21. Qd2 {[%clk 0:02:26]}  Qc7 {[%clk 0:02:06]} 22. Rbe1 {[%clk 0:01:56]}  Rfe8 {[%clk 0:02:03]} 23. Ne2 {[%clk 0:01:52]}  a5 {[%clk 0:02:00]} 24. Nec1 {[%clk 0:01:52]}  a4 {[%clk 0:01:58]} 25. Re2 {[%clk 0:01:48]}  Ra8 {[%clk 0:01:52]} 26. Qd1 {[%clk 0:01:42]}  axb3 {[%clk 0:01:51]} 27. axb3 {[%clk 0:01:42]}  Ra1 {[%clk 0:01:49]} 28. Rb2 {[%clk 0:01:41]}  Rea8 {[%clk 0:01:48]} 29. Qe2 {[%clk 0:01:40]}  Be7 {[%clk 0:01:43]} 30. Ra2 {[%clk 0:01:11]}  R1xa2 {[%clk 0:01:33]} 31. Nxa2 {[%clk 0:01:09]}  Qa5 {[%clk 0:01:34]} 32. Nac1 {[%clk 0:01:07]}  Qc3 {[%clk 0:01:29]} 33. Nxe5 {[%clk 0:01:03]}  Bg5 {[%clk 0:01:10]} 34. Ncd3 {[%clk 0:00:50]}  Be7 {[%clk 0:00:53]} 35. Nc1 {[%clk 0:00:25]}  Ra1 {[%clk 0:00:23]} 36. Ned3 {[%clk 0:00:23]}  f6 {[%clk 0:00:17]} 37. f4 {[%clk 0:00:20]}  Bf7 {[%clk 0:00:15]} 38. e5 {[%clk 0:00:19]}  fxe5 {[%clk 0:00:15]} 39. Qxe5 {[%clk 0:00:17]}  Bf8 {[%clk 0:00:10]} 40. f5 {[%clk 0:00:16]}  Qd2 {[%clk 0:00:10]} 41. Kh2 {[%clk 0:00:08]}  Ra8 {[%clk 0:00:05]} 42. Rf2 {[%clk 0:00:05]}  Qd1 {[%clk 0:00:05]} 43. Qe2 {[%clk 0:00:04]}  Qxe2 {[%clk 0:00:04]} 44. Rxe2 {[%clk 0:00:04]}  Bd6+ {[%clk 0:00:04]} 45. g3 {[%clk 0:00:04]}  Kf8 {[%clk 0:00:03]} 46. Kg2 {[%clk 0:00:04]}  Ra1 {[%clk 0:00:03]} 47. Ra2 {[%clk 0:00:02]}  Rb1 {[%clk 0:00:02]} 48. Ra8+ {[%clk 0:00:01]}  Ke7 {[%clk 0:00:02]} 49. Ra7+ {[%clk 0:00:02]}  Kf6 {[%clk 0:00:02]} 50. Ra6 {[%clk 0:00:02]}  Ke7 {[%clk 0:00:03]} 51. Ra7+ {[%clk 0:00:03]}  Kf8 {[%clk 0:00:02]} 52. Ra6 {[%clk 0:00:03]}  Be7 {[%clk 0:00:01]} 53. Ra8+ {[%clk 0:00:03]}  Be8 {[%clk 0:00:01]} 54. Ne2 {[%clk 0:00:02]} 1-0

[Event "January 9 Early 2024"]
[Site "https://www.chess.com"]
[Date "2024.01.11"]
[Round "10"]
[White "Mohammadi, Melika"]
[Black "Ghosh, Chanchal Kumer"]
[Result "0-1"]
[Board "173"]
[TimeControl "180+1"]
[WhiteFideId "42529271"]
[BlackFideId "10201858"]
[WhiteElo "2439"]
[BlackElo "2107"]
[WhiteTeam "IRI"]
[BlackTeam "BAN"]
[WhiteClock "0:00:01"]
[BlackClock "0:00:10"]

1. e4 {[%clk 0:03:00]}  c5 {[%clk 0:02:56]} 2. Nf3 {[%clk 0:03:01]}  d6 {[%clk 0:02:56]} 3. d4 {[%clk 0:03:01]}  cxd4 {[%clk 0:02:56]} 4. Nxd4 {[%clk 0:03:02]}  Nf6 {[%clk 0:02:56]} 5. Nc3 {[%clk 0:03:02]}  a6 {[%clk 0:02:56]} 6. f3 {[%clk 0:03:02]}  e5 {[%clk 0:02:56]} 7. Nb3 {[%clk 0:03:03]}  Be6 {[%clk 0:02:56]} 8. Be3 {[%clk 0:03:04]}  Be7 {[%clk 0:02:56]} 9. Qd2 {[%clk 0:03:04]}  Nbd7 {[%clk 0:02:56]} 10. O-O-O {[%clk 0:03:01]}  O-O {[%clk 0:02:53]} 11. g4 {[%clk 0:03:01]}  b5 {[%clk 0:02:51]} 12. g5 {[%clk 0:03:01]}  Nh5 {[%clk 0:02:48]} 13. Nd5 {[%clk 0:02:56]}  Bxd5 {[%clk 0:02:42]} 14. exd5 {[%clk 0:02:57]}  Rc8 {[%clk 0:02:34]} 15. Na5 {[%clk 0:02:53]}  Nb8 {[%clk 0:02:17]} 16. Bh3 {[%clk 0:02:40]}  Nf4 {[%clk 0:01:50]} 17. Bxc8 {[%clk 0:02:32]}  Qxc8 {[%clk 0:01:50]} 18. Bxf4 {[%clk 0:02:29]}  exf4 {[%clk 0:01:50]} 19. h4 {[%clk 0:02:25]}  Bd8 {[%clk 0:01:33]} 20. Nc6 {[%clk 0:02:23]}  Nxc6 {[%clk 0:01:33]} 21. dxc6 {[%clk 0:02:24]}  Qxc6 {[%clk 0:01:33]} 22. Qxd6 {[%clk 0:02:25]}  Qc8 {[%clk 0:01:11]} 23. Rhe1 {[%clk 0:02:21]}  Bc7 {[%clk 0:01:01]} 24. Qc6 {[%clk 0:02:18]}  Qb8 {[%clk 0:01:00]} 25. Re7 {[%clk 0:02:11]}  Bb6 {[%clk 0:00:56]} 26. Qb7 {[%clk 0:01:57]}  Be3+ {[%clk 0:00:54]} 27. Kb1 {[%clk 0:01:57]}  Qxb7 {[%clk 0:00:44]} 28. Rxb7 {[%clk 0:01:58]}  g6 {[%clk 0:00:44]} 29. Rbd7 {[%clk 0:01:56]}  Bf2 {[%clk 0:00:34]} 30. Rh1 {[%clk 0:01:29]}  Re8 {[%clk 0:00:35]} 31. Rd2 {[%clk 0:01:22]}  Bxh4 {[%clk 0:00:28]} 32. Rdh2 {[%clk 0:00:53]}  Bxg5 {[%clk 0:00:28]} 33. Rxh7 {[%clk 0:00:52]}  Re3 {[%clk 0:00:18]} 34. R7h3 {[%clk 0:00:50]}  Bf6 {[%clk 0:00:17]} 35. a3 {[%clk 0:00:49]}  a5 {[%clk 0:00:15]} 36. Rd1 {[%clk 0:00:41]}  b4 {[%clk 0:00:15]} 37. Rd6 {[%clk 0:00:37]}  Kg7 {[%clk 0:00:14]} 38. axb4 {[%clk 0:00:35]}  axb4 {[%clk 0:00:15]} 39. Rb6 {[%clk 0:00:34]}  Re1+ {[%clk 0:00:14]} 40. Ka2 {[%clk 0:00:34]}  Re2 {[%clk 0:00:15]} 41. Rxb4 {[%clk 0:00:20]}  Rxc2 {[%clk 0:00:14]} 42. Rh1 {[%clk 0:00:18]}  g5 {[%clk 0:00:13]} 43. Rd1 {[%clk 0:00:15]}  Rf2 {[%clk 0:00:13]} 44. Rb3 {[%clk 0:00:14]}  Be5 {[%clk 0:00:11]} 45. Rd5 {[%clk 0:00:14]}  f6 {[%clk 0:00:11]} 46. Rdb5 {[%clk 0:00:10]}  Kg6 {[%clk 0:00:11]} 47. Rd3 {[%clk 0:00:09]}  Kf5 {[%clk 0:00:11]} 48. Ka3 {[%clk 0:00:09]}  g4 {[%clk 0:00:11]} 49. fxg4+ {[%clk 0:00:09]}  Kxg4 {[%clk 0:00:12]} 50. b4 {[%clk 0:00:03]}  Rf1 {[%clk 0:00:10]} 51. Rb7 {[%clk 0:00:02]}  f3 {[%clk 0:00:10]} 52. Rg7+ {[%clk 0:00:02]}  Kf4 {[%clk 0:00:10]} 53. b5 {[%clk 0:00:02]}  f2 {[%clk 0:00:10]} 54. Rd1 {[%clk 0:00:01]}  Rxd1 {[%clk 0:00:10]} 0-1

[Event "January 9 Early 2024"]
[Site "https://www.chess.com"]
[Date "2024.01.11"]
[Round "10"]
[White "Drozdowski, Kacper"]
[Black "Lysyj, Igor"]
[Result "0-1"]
[Board "175"]
[TimeControl "180+1"]
[WhiteFideId "1136720"]
[BlackFideId "4150120"]
[WhiteElo "2959"]
[BlackElo "2869"]
[WhiteTeam "POL"]
[BlackTeam "FID"]
[WhiteClock "0:00:04"]
[BlackClock "0:00:13"]

1. e4 {[%clk 0:03:00]}  e5 {[%clk 0:02:59]} 2. Nf3 {[%clk 0:03:01]}  Nc6 {[%clk 0:02:59]} 3. Bc4 {[%clk 0:03:01]}  Bc5 {[%clk 0:02:58]} 4. c3 {[%clk 0:03:01]}  Nf6 {[%clk 0:02:57]} 5. d3 {[%clk 0:03:02]}  d6 {[%clk 0:02:56]} 6. Bb3 {[%clk 0:03:02]}  O-O {[%clk 0:02:52]} 7. Nbd2 {[%clk 0:03:02]}  a5 {[%clk 0:02:49]} 8. h3 {[%clk 0:03:02]}  Be6 {[%clk 0:02:44]} 9. Bc2 {[%clk 0:03:00]}  d5 {[%clk 0:02:44]} 10. Nh2 {[%clk 0:02:58]}  d4 {[%clk 0:02:34]} 11. a4 {[%clk 0:02:44]}  Nd7 {[%clk 0:02:29]} 12. O-O {[%clk 0:02:35]}  Re8 {[%clk 0:02:28]} 13. Re1 {[%clk 0:02:22]}  Ba7 {[%clk 0:02:23]} 14. Ndf1 {[%clk 0:02:15]}  Qe7 {[%clk 0:02:17]} 15. Ng3 {[%clk 0:02:13]}  Rad8 {[%clk 0:02:06]} 16. Qf3 {[%clk 0:02:12]}  Nc5 {[%clk 0:02:01]} 17. Ng4 {[%clk 0:02:03]}  Bxg4 {[%clk 0:01:31]} 18. hxg4 {[%clk 0:02:02]}  g6 {[%clk 0:01:31]} 19. g5 {[%clk 0:01:56]}  Ne6 {[%clk 0:01:27]} 20. Qg4 {[%clk 0:01:54]}  dxc3 {[%clk 0:01:26]} 21. bxc3 {[%clk 0:01:54]}  Qc5 {[%clk 0:01:26]} 22. Be3 {[%clk 0:01:41]}  Qxc3 {[%clk 0:01:26]} 23. Bxa7 {[%clk 0:01:33]}  Qxc2 {[%clk 0:01:26]} 24. Be3 {[%clk 0:01:33]}  Qxd3 {[%clk 0:01:25]} 25. Rab1 {[%clk 0:01:25]}  b6 {[%clk 0:01:22]} 26. Nf1 {[%clk 0:01:23]}  Ncd4 {[%clk 0:01:21]} 27. Nh2 {[%clk 0:01:19]}  Nc2 {[%clk 0:01:19]} 28. Qh4 {[%clk 0:01:09]}  Nxe1 {[%clk 0:01:02]} 29. Rxe1 {[%clk 0:01:10]}  Kh8 {[%clk 0:00:49]} 30. Ng4 {[%clk 0:01:09]}  Qxe4 {[%clk 0:00:49]} 31. f3 {[%clk 0:01:04]}  Qxa4 {[%clk 0:00:48]} 32. Qh6 {[%clk 0:00:59]}  Rd1 {[%clk 0:00:34]} 33. Rxd1 {[%clk 0:00:58]}  Qxd1+ {[%clk 0:00:34]} 34. Kh2 {[%clk 0:00:59]}  Nf8 {[%clk 0:00:34]} 35. Bf2 {[%clk 0:00:48]}  Qd6 {[%clk 0:00:28]} 36. Bg3 {[%clk 0:00:46]}  Re6 {[%clk 0:00:27]} 37. Kh3 {[%clk 0:00:42]}  Kg8 {[%clk 0:00:26]} 38. Qh4 {[%clk 0:00:36]}  a4 {[%clk 0:00:25]} 39. Nh6+ {[%clk 0:00:32]}  Kg7 {[%clk 0:00:24]} 40. Qxa4 {[%clk 0:00:32]}  f6 {[%clk 0:00:22]} 41. gxf6+ {[%clk 0:00:30]}  Rxf6 {[%clk 0:00:21]} 42. Ng4 {[%clk 0:00:30]}  Rf5 {[%clk 0:00:21]} 43. Qe8 {[%clk 0:00:28]}  Rh5+ {[%clk 0:00:20]} 44. Bh4 {[%clk 0:00:28]}  Qe6 {[%clk 0:00:20]} 45. Qd8 {[%clk 0:00:19]}  g5 {[%clk 0:00:20]} 46. Qxc7+ {[%clk 0:00:20]}  Kg8 {[%clk 0:00:19]} 47. g3 {[%clk 0:00:12]}  gxh4 {[%clk 0:00:19]} 48. gxh4 {[%clk 0:00:13]}  Rf5 {[%clk 0:00:18]} 49. Kg3 {[%clk 0:00:12]}  Rf7 {[%clk 0:00:18]} 50. Qc1 {[%clk 0:00:12]}  Rg7 {[%clk 0:00:17]} 51. h5 {[%clk 0:00:12]}  e4 {[%clk 0:00:16]} 52. h6 {[%clk 0:00:07]}  Rg6 {[%clk 0:00:16]} 53. Kf2 {[%clk 0:00:06]}  exf3 {[%clk 0:00:16]} 54. Ne3 {[%clk 0:00:06]}  Rxh6 {[%clk 0:00:13]} 55. Qc7 {[%clk 0:00:06]}  Rg6 {[%clk 0:00:13]} 56. Qf4 {[%clk 0:00:05]}  Qf6 {[%clk 0:00:13]} 57. Qc4+ {[%clk 0:00:05]}  Qe6 {[%clk 0:00:13]} 58. Qf4 {[%clk 0:00:05]}  b5 {[%clk 0:00:13]} 59. Qc7 {[%clk 0:00:03]}  Qf7 {[%clk 0:00:13]} 60. Qe5 {[%clk 0:00:03]}  Rg2+ {[%clk 0:00:12]} 61. Nxg2 {[%clk 0:00:03]}  fxg2+ {[%clk 0:00:12]} 62. Kxg2 {[%clk 0:00:04]}  Qg7+ {[%clk 0:00:13]} 0-1

[Event "January 9 Early 2024"]
[Site "https://www.chess.com"]
[Date "2024.01.11"]
[Round "10"]
[White "Franchini, Gabriele"]
[Black "Kraus, Tomas"]
[Result "1-0"]
[Board "176"]
[TimeControl "180+1"]
[WhiteFideId "806790"]
[BlackFideId "331708"]
[WhiteElo "2250"]
[BlackElo "2333"]
[WhiteTeam "ITA"]
[BlackTeam "CZE"]
[WhiteClock "0:00:07"]
[BlackClock "0:00:02"]

1. e4 {[%clk 0:03:00]}  c5 {[%clk 0:02:55]} 2. Nc3 {[%clk 0:03:00]}  e6 {[%clk 0:02:54]} 3. f4 {[%clk 0:03:00]}  a6 {[%clk 0:02:49]} 4. Nf3 {[%clk 0:02:59]}  Qc7 {[%clk 0:02:50]} 5. g3 {[%clk 0:02:53]}  b5 {[%clk 0:02:48]} 6. Bg2 {[%clk 0:02:53]}  Bb7 {[%clk 0:02:46]} 7. d3 {[%clk 0:02:53]}  d5 {[%clk 0:02:42]} 8. O-O {[%clk 0:02:51]}  Be7 {[%clk 0:02:40]} 9. exd5 {[%clk 0:02:49]}  exd5 {[%clk 0:02:41]} 10. d4 {[%clk 0:02:45]}  Nf6 {[%clk 0:02:39]} 11. Be3 {[%clk 0:02:20]}  Ng4 {[%clk 0:02:30]} 12. Qd2 {[%clk 0:02:20]}  Nxe3 {[%clk 0:02:26]} 13. Qxe3 {[%clk 0:02:20]}  O-O {[%clk 0:02:26]} 14. Rad1 {[%clk 0:02:15]}  cxd4 {[%clk 0:01:11]} 15. Nxd4 {[%clk 0:02:16]}  Bc5 {[%clk 0:01:09]} 16. Kh1 {[%clk 0:02:09]}  Nd7 {[%clk 0:00:50]} 17. Nxd5 {[%clk 0:01:53]}  Qd6 {[%clk 0:00:43]} 18. Nf5 {[%clk 0:01:31]}  Bxe3 {[%clk 0:00:42]} 19. Nxd6 {[%clk 0:01:30]}  Bxd5 {[%clk 0:00:33]} 20. Bxd5 {[%clk 0:01:31]}  Rad8 {[%clk 0:00:30]} 21. Rfe1 {[%clk 0:01:13]}  Bc5 {[%clk 0:00:26]} 22. Nb7 {[%clk 0:01:12]}  Rc8 {[%clk 0:00:22]} 23. Nxc5 {[%clk 0:01:01]}  Nxc5 {[%clk 0:00:22]} 24. Re7 {[%clk 0:00:57]}  Ne6 {[%clk 0:00:18]} 25. Bxe6 {[%clk 0:00:55]}  fxe6 {[%clk 0:00:19]} 26. c3 {[%clk 0:00:56]}  b4 {[%clk 0:00:11]} 27. Rdd7 {[%clk 0:00:56]}  Rf6 {[%clk 0:00:04]} 28. Rxg7+ {[%clk 0:00:55]}  Kf8 {[%clk 0:00:05]} 29. Rxh7 {[%clk 0:00:53]}  Ke8 {[%clk 0:00:06]} 30. Rb7 {[%clk 0:00:49]}  bxc3 {[%clk 0:00:06]} 31. bxc3 {[%clk 0:00:45]}  e5 {[%clk 0:00:04]} 32. Rh8+ {[%clk 0:00:40]}  Rf8 {[%clk 0:00:03]} 33. Rxf8+ {[%clk 0:00:41]}  Kxf8 {[%clk 0:00:04]} 34. fxe5 {[%clk 0:00:40]}  Rxc3 {[%clk 0:00:05]} 35. Rb2 {[%clk 0:00:31]}  Ke7 {[%clk 0:00:03]} 36. Re2 {[%clk 0:00:31]}  Ke6 {[%clk 0:00:02]} 37. Kg2 {[%clk 0:00:31]}  a5 {[%clk 0:00:01]} 38. Kh3 {[%clk 0:00:25]}  a4 {[%clk 0:00:01]} 39. Kh4 {[%clk 0:00:17]}  Rc4+ {[%clk 0:00:01]} 40. g4 {[%clk 0:00:16]}  Rb4 {[%clk 0:00:02]} 41. Re3 {[%clk 0:00:14]}  Rb2 {[%clk 0:00:02]} 42. Ra3 {[%clk 0:00:09]}  Rxh2+ {[%clk 0:00:02]} 43. Kg5 {[%clk 0:00:10]}  Kxe5 {[%clk 0:00:02]} 44. Rxa4 {[%clk 0:00:10]}  Rf2 {[%clk 0:00:02]} 45. Ra5+ {[%clk 0:00:10]}  Ke6 {[%clk 0:00:02]} 46. a4 {[%clk 0:00:10]}  Rb2 {[%clk 0:00:02]} 47. Ra6+ {[%clk 0:00:09]}  Ke5 {[%clk 0:00:03]} 48. Ra5+ {[%clk 0:00:09]}  Ke6 {[%clk 0:00:02]} 49. Kg6 {[%clk 0:00:10]}  Rb4 {[%clk 0:00:02]} 50. g5 {[%clk 0:00:10]}  Rb6 {[%clk 0:00:03]} 51. Kg7 {[%clk 0:00:09]}  Ke7 {[%clk 0:00:01]} 52. Re5+ {[%clk 0:00:08]}  Kd6 {[%clk 0:00:01]} 53. Re4 {[%clk 0:00:09]}  Kd7 {[%clk 0:00:01]} 54. g6 {[%clk 0:00:08]}  Rb7 {[%clk 0:00:02]} 55. Kh8 {[%clk 0:00:07]}  Kd8 {[%clk 0:00:01]} 56. g7 {[%clk 0:00:06]}  Rxg7 {[%clk 0:00:01]} 57. Kxg7 {[%clk 0:00:06]}  Kc7 {[%clk 0:00:02]} 58. Rb4 {[%clk 0:00:07]} 1-0